[Event "1st Chessable Sunway Formentera 2022"]
[Site "Formentera Punta Prima"]
[Date "2022.05.09"]
[Round "9.10"]
[White "Papadiamandis, Elliot"]
[Black "Chiku-Ratte, Olivier-Kenta"]
[Result "1/2-1/2"]
[ECO "B29"]
[WhiteElo "2373"]
[BlackElo "2358"]
[Annotator "TA"]
[PlyCount "91"]
[EventDate "2022.05.05"]
[EventType "swiss"]
[EventCountry "ESP"]
[SourceTitle "playchess.com"]
[Source "ChessBase"]
[SourceQuality "1"]
[TimeControl "40/5400+30:1800+30"]

{[%evp 14,91,17,0,0,0,40,33,47,68,73,44,58,41,41,53,62,69,68,50,65,56,58,58,66,54,79,34,60,60,63,67,129,117,162,136,187,166,163,173,168,110,110,111,110,107,77,10,14,0,0,0,0,2,2,0,0,0,9,0,6,0,0,0,0,0,0,0,0,0,0,0,0,0,0,0,2,0,0,0]} 1. e4 {[%emt 0:00:01]} c5 {[%emt 0:02:24]} 2. Nf3 {[%emt 0:00:23]} Nf6 {[%emt 0:01:02]} 3. e5 {[%emt 0:07:42]} Nd5 {[%emt 0:00:36]} 4. d4 {[%emt 0:00:43]} cxd4 {[%emt 0:00:24]} 5. Qxd4 {[%emt 0:04:04]} e6 {[%emt 0:02:09]} 6. Bc4 {[%emt 0:07:39]} Nc6 {[%emt 0:00:44]} 7. Qe4 {[%emt 0:01:23]} d6 {[%emt 0:00:50]} 8. O-O {[%emt 0:01:53]} dxe5 {[%emt 0:21:28] B29: Sicilian: 2 Nf3 Nf6 (Nimzowitsch Variation).} 9. Nxe5 {[%emt 0:01:22]} Nf6 {[%emt 0:14:41] [#]} 10. Nxc6 $1 {[%emt 0:08:22]} Nxe4 {[%emt 0:06:35] White is slightly better.} (10... Qd6 11. Qe2) 11. Nxd8 {[%emt 0:00:25]} Kxd8 {[%emt 0:00:05] [#]} 12. Re1 $146 {[%emt 0:03:48]} ({Predecessor:} 12. Be3 Bc5 13. Bxc5 Nxc5 14. Nc3 Ke7 15. Rfe1 Bd7 16. Rad1 Rhc8 17. b4 Na6 18. Nd5+ {0-1 (32) Tesla,V (2293)-Legky,N (2420) Odessa 2010}) 12... Nd6 {[%emt 0:03:22]} 13. Bb3 {[%emt 0:03:40]} Bd7 {[%emt 0:03:21]} 14. Nc3 {[%emt 0:01:27]} a5 {[%emt 0:05:26]} 15. a4 {[%emt 0:03:20]} Ra6 {[%emt 0:05:04]} 16. Bf4 {[%emt 0:02:49] aiming for Rad1.} Be7 {[%emt 0:07:17]} 17. Rad1 {[%emt 0:03:19][%cal Ba1d1,Bd1d3,Bd3h3][%mdl 32]} Kc8 $1 {[%emt 0:02:55]} 18. Rd3 $36 {[%emt 0:10:20][%mdl 2048] Strongly threatening Red1. White is more active.} Rd8 {[%emt 0:05:49]} 19. Red1 {[%emt 0:07:10][%cal Rf4d6] White is much more active.} Be8 {[%emt 0:02:05]} 20. Rh3 {[%emt 0:03:05]} h6 {[%emt 0:01:41]} 21. Be5 {[%emt 0:00:27]} Nf5 {[%emt 0:05:56][%cal Bd6f5,Bf5h4,Bh4f3,Bf3h2,Bh2g4][%mdl 32]} 22. Rxd8+ {[%emt 0:04:05]} Bxd8 {[%emt 0:00:22]} (22... Kxd8 $14 23. Rd3+ Bd7) 23. g4 $16 {[%emt 0:01:30]} Nh4 {[%emt 0:01:12][%cal Of7f6]} 24. Bxg7 {[%emt 0:01:17]} Bc6 {[%emt 0:03:24] Inhibits Ne4.} (24... Rd6 $16) 25. Bxh6 {[%emt 0:00:37]} Nf3+ {[%emt 0:00:18]} 26. Kf1 {[%emt 0:00:23]} Bc7 {[%emt 0:00:02] [#]} 27. Be3 {[%emt 0:02:21]} (27. Bc1 $1 $18) 27... Nxh2+ {[%emt 0:01:30]} 28. Ke2 {[%emt 0:00:01]} Nxg4 {[%emt 0:02:30]} 29. Rh8+ {[%emt 0:01:12]} Kd7 {[%emt 0:00:21]} 30. Bc4 {[%emt 0:01:29]} (30. Bg5 $16) 30... Bf3+ $1 $11 {[%emt 0:00:54] The position is equal.} 31. Ke1 {[%emt 0:00:01]} Nxe3 {[%emt 0:00:20]} 32. Bb5+ {[%emt 0:08:16]} Ke7 {[%emt 0:00:44] ...Ng2+ is the strong threat.} 33. fxe3 {[%emt 0:02:19]} Rd6 {[%emt 0:00:36]} 34. Kf2 {[%emt 0:03:24]} Bc6 {[%emt 0:00:47] Prevents Re8+. Hoping for ...Rd2+.} 35. Ke2 {[%emt 0:01:08] Inhibits Rd2+.} Bd7 {[%emt 0:00:33]} 36. Rh7 {[%emt 0:01:25]} Be8 {[%emt 0:00:24]} 37. Bxe8 {[%emt 0:02:09]} Kxe8 {[%emt 0:00:01][%mdl 4096] Endgame KRB-KRN} 38. Ne4 {[%emt 0:00:07]} Rb6 {[%emt 0:01:01]} 39. b3 {[%emt 0:00:21]} Rc6 {[%emt 0:00:13]} 40. Kd3 {[%emt 0:00:00]} Bd8 {[%emt 0:00:00]} 41. Rh8+ {[%emt 0:10:30]} Kd7 {[%emt 0:02:52]} 42. Rh7 {[%emt 0:00:48]} Ke8 {[%emt 0:01:10]} 43. Rh8+ {[%emt 0:02:18]} Kd7 {[%emt 0:00:06]} 44. Rh7 {[%emt 0:00:05]} Ke8 {[%emt 0:00:07]} 45. c4 {[%emt 0:00:05]} f5 {[%emt 0:00:02]} 46. Nc3 {[%emt 0:00:02] Black defended with fortune.  Weighted Error Value: White=0.10 (very precise) /Black=0.09 (flawless)} 1/2-1/2

[Event "1st Chessable Sunway Formentera 2022"]
[Site "Formentera Punta Prima"]
[Date "2022.05.08"]
[Round "9.11"]
[White "Tsatsalashvili, Keti"]
[Black "Bergez, Luc"]
[Result "1/2-1/2"]
[ECO "E70"]
[WhiteElo "2331"]
[BlackElo "2331"]
[Annotator "TA"]
[PlyCount "139"]
[EventDate "2022.05.05"]
[EventType "swiss"]
[EventCountry "ESP"]
[SourceTitle "playchess.com"]
[Source "ChessBase"]
[SourceQuality "1"]
[TimeControl "40/5400+30:1800+30"]

{[%evp 11,139,15,29,1,-1,-1,-6,0,-4,-14,0,0,0,0,0,0,0,-18,-16,-10,-18,-35,-27,-31,-26,-67,-51,-60,-61,-77,-78,-80,-34,-168,0,0,0,0,0,0,0,0,0,0,0,0,0,-31,-43,-43,-41,-39,-36,-77,-47,-47,0,0,0,-20,0,-21,0,-30,-25,-81,-81,-81,-81,-76,-69,-81,-68,-81,-81,-79,-81,-67,-69,-72,-71,-81,-85,-132,-124,-224,-220,-251,-255,-374,-217,-219,-224,-210,-211,-275,-284,-312,-313,-547,-575,-500,-320,-279,-230,-508,-501,-305,-8,-8,-8,-8,-8,-8,-8,-8,-8,-8,0,0,0,0,0,0,0,0,0,0,0,-8]} 1. d4 {[%emt 0:00:16]} Nf6 {[%emt 0:00:17]} 2. c4 {[%emt 0:00:30]} g6 {[%emt 0:00:30]} 3. Nc3 {[%emt 0:00:04]} Bg7 {[%emt 0:00:00]} 4. e4 {[%emt 0:00:05]} O-O {[%emt 0:00:08]} 5. Nf3 {[%emt 0:00:09]} c6 {[%emt 0:04:37]} 6. e5 {[%emt 0:02:25]} Ne8 $1 {[%emt 0:00:16]} 7. Be3 {[%emt 0:00:07] E70: King's Indian: Miscellaneous lines with 4 e4, including 5 Nge2 and 5 Bd3 0-0 6 Nge2.} d6 {[%emt 0:01:00]} 8. h3 {[%emt 0:06:27] Against Bg4} dxe5 {[%emt 0:10:10]} 9. Nxe5 {[%emt 0:01:43] [#]} c5 $146 {[%emt 0:08:35]} ({Predecessor:} 9... Nd6 10. f4 Be6 11. b3 Nf5 12. Bf2 Qa5 13. Qd2 Rd8 14. O-O-O Nd7 15. g4 Nxe5 16. gxf5 Nf3 17. Qb2 Qxf5 18. Ne2 c5 19. Bg2 Nxd4 20. Be3 Nxe2+ {0-1 (20) Schuh,D (2377)-Heberla,B (2553) Germany 2013}) 10. Nf3 {[%emt 0:06:01]} Nd6 {[%emt 0:05:11]} 11. dxc5 {[%emt 0:10:32]} Nf5 {[%emt 0:00:14]} 12. Qxd8 {[%emt 0:01:23]} Rxd8 {[%emt 0:00:07]} 13. Bd2 {[%emt 0:14:26]} Na6 {[%emt 0:04:04]} 14. O-O-O {[%emt 0:03:22]} (14. g4 $5 {[%cal Rg4f5]}) 14... Nxc5 {[%emt 0:00:27]} 15. g4 {[%emt 0:06:26]} Nd6 {[%emt 0:00:52][%cal Ob7b5] White must now prevent ...b5!} 16. Nd5 {[%emt 0:01:57]} Be6 {[%emt 0:08:59]} (16... Nde4 {is interesting.} 17. Be3 Be6 18. Nxe7+ Kf8) 17. Nxe7+ {[%emt 0:06:53]} Kf8 {[%emt 0:00:18]} 18. Nd5 {[%emt 0:14:14]} Rac8 {[%emt 0:03:14][%cal Oc5d3][%mdl 1024] Black has compensation.} (18... Nxc4 19. Bxc4 Rxd5 20. Kb1 $11 (20. Bxd5 Bxd5 21. Bb4 Bxf3 $11)) 19. Bg5 {[%emt 0:05:05]} Rd7 {[%emt 0:09:53] Against Be7+} 20. Kb1 {[%emt 0:03:22]} Nde4 {[%emt 0:02:12] Against Nf6} 21. Be3 {[%emt 0:03:36]} Na4 {[%emt 0:01:21]} (21... b5 $17 {Strongly threatening ...bxc4.} 22. Nd4 bxc4) 22. Bd3 {[%emt 0:02:19]} (22. Bd4 $15) 22... Nxb2 $2 {[%emt 0:01:06]} (22... Nec5 $1 $19 23. Bd4 Nxd3 24. Rxd3 Rxc4) 23. Bxe4 $11 {[%emt 0:01:48][%cal Of3g5]} Nxd1 {[%emt 0:00:13]} 24. Rxd1 {[%emt 0:00:06]} Rxc4 {[%emt 0:00:09]} 25. Ng5 {[%emt 0:01:41]} Rxe4 {[%emt 0:00:51]} 26. Nxh7+ {[%emt 0:01:19]} Kg8 {[%emt 0:02:06]} 27. Nhf6+ {[%emt 0:04:07]} Kh8 {[%emt 0:00:39]} 28. Nxd7 {[%emt 0:00:12]} Bxd7 {[%emt 0:00:21]} 29. Nc3 {[%emt 0:00:34]} Rb4+ {[%emt 0:00:34]} (29... Bxc3 30. Rxd7 Kg7 31. Rxb7 $16) 30. Kc2 {[%emt 0:00:10]} Bc6 {[%emt 0:00:56]} 31. Rd8+ {[%emt 0:01:23]} Kh7 {[%emt 0:00:10]} 32. Bd2 {[%emt 0:03:11]} a5 {[%emt 0:07:07]} 33. a3 {[%emt 0:00:23]} Rc4 {[%emt 0:01:12]} (33... Rd4 $1 $15 {is superior.} 34. Rxd4 Bxd4) 34. Kd3 $1 {[%emt 0:00:04]} Rc5 {[%emt 0:04:47]} 35. a4 {[%emt 0:00:04]} Bg2 {[%emt 0:02:19]} 36. Rd7 {[%emt 0:01:26]} f5 {[%emt 0:08:27]} 37. gxf5 {[%emt 0:00:28]} gxf5 {[%emt 0:00:08]} 38. Ke2 {[%emt 0:00:35] [#]} (38. h4 $11 {remains equal.}) 38... Bc6 $1 $17 {[%emt 0:02:45]} 39. Re7 {[%emt 0:00:02][%cal Oc3b5]} Kg6 {[%emt 0:00:12]} 40. Kd3 {[%emt 0:00:00]} Bf6 {[%emt 0:00:00] This bishop pair is nice.} 41. Re1 {[%emt 0:00:13]} f4 {[%emt 0:10:12]} 42. Rg1+ {[%emt 0:03:22]} Kf5 {[%emt 0:01:54]} 43. Rg8 {[%emt 0:02:26]} Ke6 {[%emt 0:09:35]} 44. Rg4 {[%emt 0:02:50]} Be5 {[%emt 0:01:18]} 45. h4 {[%emt 0:01:53]} Bf3 {[%emt 0:01:27]} 46. Rg6+ {[%emt 0:00:57]} Bf6 {[%emt 0:01:37]} 47. Rg1 {[%emt 0:00:58]} (47. Rg8 $142) 47... Kf5 {[%emt 0:01:12]} ({And not} 47... Bxh4 48. Bxf4 Bf6 49. Nb5 $15) 48. h5 {[%emt 0:03:47]} (48. Rg8 $17) 48... Bxh5 $19 {[%emt 0:01:29]} 49. Rb1 {[%emt 0:00:05]} Bg6 {[%emt 0:00:51]} 50. Rb6 {[%emt 0:08:17]} (50. Rg1 {is the only way for White.}) 50... f3 {[%emt 0:07:53]} (50... Kg4+ $142 51. Ke2 f3+ 52. Kd1 Rc6 53. Rxc6 bxc6) 51. Ne4 {[%emt 0:04:25]} Rd5+ {[%emt 0:06:12]} 52. Kc2 {[%emt 0:00:15]} Be5 {[%emt 0:00:38]} ({Weaker is} 52... Kxe4 53. Rxf6 Bf5 54. Bc3 $17) 53. Nc3 {[%emt 0:01:04]} Rd7 {[%emt 0:01:50]} 54. Nb5 {[%emt 0:02:11] [#]} Bh7 $1 {[%emt 0:01:37]} 55. Be3 $2 {[%emt 0:03:53]} (55. Kc1 {was necessary.}) 55... Kg4+ {[%emt 0:00:24]} 56. Kc1 {[%emt 0:00:09]} Bd3 {[%emt 0:01:10] aiming for ...Bf5.} 57. Re6 {[%emt 0:01:02]} Rd5 {[%emt 0:00:05]} 58. Na3 {[%emt 0:00:53]} (58. Rb6) 58... Kh3 {[%emt 0:00:44]} 59. Nc2 {[%emt 0:00:59]} Bxc2 $2 {[%emt 0:02:25]} (59... Bc3 $19 {And now ...Kg2 would win.} 60. Rb6 Be2) 60. Kxc2 {[%emt 0:00:01][%mdl 4096] Endgame KRB-KRB. The position is equal.} Kg2 {[%emt 0:00:16] Threatens to win with ...Kf1.} 61. Rg6+ $1 {[%emt 0:01:44]} Kf1 {[%emt 0:00:25]} 62. Rg5 {[%emt 0:00:34]} Ke2 {[%emt 0:00:17]} 63. Rf5 {[%emt 0:00:11]} b5 {[%emt 0:00:25]} 64. axb5 {[%emt 0:00:15]} a4 {[%emt 0:00:59][%cal Ba5a4,Ba4a3][%mdl 32]} (64... Rxb5 $5 65. Bd4 a4 $11) 65. b6 {[%emt 0:00:38]} a3 $1 {[%emt 0:00:25] ( -> ...a2)} 66. Kb3 {[%emt 0:00:53] Hoping for Ka2.} Rd3+ {[%emt 0:00:58]} 67. Ka2 {[%emt 0:00:06]} Bd6 {[%emt 0:00:41]} 68. Rf6 {[%emt 0:01:01][%cal Of6d6] Rxd6! is the strong threat.} Rxe3 {[%emt 0:00:31]} 69. fxe3 {[%emt 0:00:29]} f2 {[%emt 0:00:05]} 70. b7 {[%emt 0:00:13] White happily takes the draw.  Weighted Error Value: White=0.28 (precise) /Black=0.24 (precise)} ({Don't blunder} 70. Rxd6 $2 f1=Q 71. Rd5 Qf7 $19) 1/2-1/2

[Event "1st Chessable Sunway Formentera 2022"]
[Site "Formentera Punta Prima"]
[Date "2022.05.08"]
[Round "9.12"]
[White "Chkhaidze, Nikoloz"]
[Black "Neiman, Emmanuel"]
[Result "0-1"]
[ECO "D37"]
[WhiteElo "2301"]
[BlackElo "2248"]
[Annotator "TA"]
[PlyCount "188"]
[EventDate "2022.05.05"]
[EventType "swiss"]
[EventCountry "ESP"]
[SourceTitle "playchess.com"]
[Source "ChessBase"]
[SourceQuality "1"]
[TimeControl "40/5400+30:1800+30"]

{[%evp 19,188,18,27,-28,53,45,61,56,47,5,5,5,5,5,4,6,6,6,6,0,8,6,6,7,7,-39,-35,-35,-35,-39,-43,-82,-82,-73,-79,-80,-87,-184,-179,-175,-178,-288,-222,-257,-257,-288,-288,-292,-292,-380,-371,-380,-380,-380,-372,-294,-295,-417,-417,-417,-432,-12830,-11496,-6460,-12654,-2506,-1619,-12837,-12837,-12837,-12838,-12838,-12839,-12844,-12844,-12845,-12845,-12845,-12839,-12840,0,-12845,-12845,-12845,-12846,-12846,-12845,-12845,-12846,-12846,-12847,-12847,-12847,-12847,-12847,-12848,-12848,-12849,-12849,-12850,-12850,-12850,-27999,-27999,-27999,-27999,-27999,-27999,-27999,-27999,-27999,-27999,-27999,-27999,-27999,-27999,-27999,-27999,-27999,-27999,-27999,-27999,-27999,-27999,-27999,-27987,-27988,-27988,-27986,-27986,-27987,-27987,-27988,-27988,-27989,-27989,-27989,-27989,-27990,-27990,-27991,-27991,-27992,-27992,-27991,-27991,-27992,-27993,-27992,-27993,-27993,-27993,-27992,-27992,-27993,-27993,-27993,-27993,-27993,-27993,-27994,-27994,-27995,-27995,-27996,-27996,-27997,-27997,-27998,-27998,-27999]} 1. d4 {[%emt 0:00:02]} d5 {[%emt 0:00:15]} 2. c4 {[%emt 0:00:04]} e6 {[%emt 0:00:10]} 3. Nf3 {[%emt 0:00:02]} Nf6 {[%emt 0:00:23]} 4. Nc3 {[%emt 0:00:01]} Be7 {[%emt 0:01:33]} 5. Bf4 {[%emt 0:00:03]} O-O {[%emt 0:00:34]} 6. e3 {[%emt 0:00:02]} c5 {[%emt 0:00:15]} 7. dxc5 {[%emt 0:00:07]} Bxc5 {[%emt 0:00:09]} 8. a3 {[%emt 0:00:04]} Nc6 {[%emt 0:03:24]} 9. Qc2 {[%emt 0:04:01]} Qa5 {[%emt 0:00:07]} 10. Rd1 {[%emt 0:00:36]} Be7 {[%emt 0:01:48]} 11. cxd5 {[%emt 0:14:44] D37: Queen's Gambit Declined: 5 Bf4.} (11. Be2 $142) 11... exd5 {[%emt 0:05:14] [#]} ({Black should try} 11... Nxd5 $11 12. Bd3 Nxc3 13. bxc3 (13. Bxh7+ Kh8 $17) 13... g5) 12. Be2 $146 {[%emt 0:01:42]} ({Predecessor:} 12. Bd3 Bg4 13. O-O Bxf3 14. gxf3 d4 15. Ne4 Nd5 16. Kh1 Nxf4 17. exf4 Rac8 18. Qe2 Qf5 {1-0 (63) Prraneeth,V (2253)-Urbina Quiroz,E (2123) Chess.com INT 2021}) 12... h6 {[%emt 0:04:34]} 13. O-O {[%emt 0:00:24][%cal Bh1f1,Bf1b1,Bb1b4][%mdl 32] White is slightly better.} Be6 14. b4 {[%emt 0:14:39]} Qxa3 {[%emt 0:04:16]} 15. Ra1 {[%emt 0:09:04]} Qxb4 {[%emt 0:00:33] ...d4 is the strong threat.} (15... Nxb4 $2 16. Qd2 Na2 17. Rxa2 $18) 16. Rfb1 {[%emt 0:01:48]} Bf5 {[%emt 0:04:58]} 17. Rxb4 {[%emt 0:16:18][%cal Oc2f5]} Bxc2 {[%emt 0:00:16]} 18. Rxb7 {[%emt 0:00:07]} a5 {[%emt 0:21:58]} 19. Rc1 {[%emt 0:19:41]} Bf5 {[%emt 0:12:22]} 20. Na4 {[%emt 0:06:33]} Ra7 {[%emt 0:05:11]} 21. Rxa7 {[%emt 0:00:50]} Nxa7 {[%emt 0:00:08]} 22. Rc7 {[%emt 0:01:57] [#]} (22. Nd4 $11 {should be considered.} Rc8 23. Ra1) 22... Rc8 $1 $15 {[%emt 0:03:32]} 23. Nd4 {[%emt 0:00:29]} ({Of course not} 23. Rxe7 Rc1+ 24. Bf1 Bd3 $17) 23... Rxc7 {[%emt 0:04:13]} 24. Bxc7 {[%emt 0:00:03]} Bd7 {[%emt 0:00:08]} 25. Nb6 {[%emt 0:02:59]} Be8 {[%emt 0:03:41] Black continues to play with concentration.} 26. Bf3 {[%emt 0:01:53]} Nb5 {[%emt 0:02:36]} 27. Nxb5 {[%emt 0:02:03]} Bxb5 {[%emt 0:00:07]} 28. Nxd5 {[%emt 0:00:14]} (28. Bxd5 $17 {might work better.} a4 29. Ba2) 28... Nxd5 $19 {[%emt 0:00:06]} 29. Bxd5 $17 {[%emt 0:00:01][%mdl 4096] Endgame KBB-KBB} a4 {[%emt 0:00:07]} 30. f3 {[%emt 0:02:40]} (30. e4 {was worth a try.}) 30... Bd3 {[%emt 0:00:09]} 31. Kf2 {[%emt 0:01:03]} Bb1 {[%emt 0:00:24]} 32. e4 {[%emt 0:01:37]} a3 {[%emt 0:00:51]} 33. f4 {[%emt 0:00:36]} ({Don't play} 33. Be5 Bf6 34. Bxf6 gxf6 $19) 33... a2 {[%emt 0:02:31]} 34. Be5 {[%emt 0:00:29]} Bf6 {[%emt 0:01:08]} 35. Bxa2 {[%emt 0:00:14]} Bxa2 {[%emt 0:00:13]} 36. Bd6 {[%emt 0:00:25]} Bd4+ {[%emt 0:00:31]} 37. Kf3 {[%emt 0:00:05]} f6 {[%emt 0:01:22]} 38. g4 {[%emt 0:00:15]} (38. f5 {is a better defense.}) 38... g5 $19 {[%emt 0:02:15]} 39. e5 {[%emt 0:01:27]} fxe5 {[%emt 0:01:11]} 40. fxg5 {[%emt 0:00:00]} (40. fxe5 $142 Bd5+ 41. Ke2) 40... Bd5+ {[%emt 0:00:00]} 41. Ke2 {[%emt 0:00:19]} hxg5 {[%emt 0:01:30]} 42. Be7 {[%emt 0:00:03]} Bg2 {[%emt 0:03:42] [#] aiming for ...e4.} 43. Bxg5 {[%emt 0:00:19]} e4 {[%emt 0:00:16]} 44. Be3 {[%emt 0:02:07]} Be5 {[%emt 0:01:16]} 45. Kf2 {[%emt 0:00:12]} Bh3 {[%emt 0:00:25]} 46. Bg5 {[%emt 0:03:49]} Bxh2 {[%emt 0:02:40]} 47. Ke3 {[%emt 0:00:34]} Bg2 {[%emt 0:00:08]} 48. Bd8 {[%emt 0:02:04]} Bg1+ {[%emt 0:01:56]} 49. Kf4 {[%emt 0:00:13]} Bh2+ {[%emt 0:07:10]} 50. Ke3 {[%emt 0:00:12]} Bg3 {[%emt 0:00:21]} 51. Bf6 {[%emt 0:00:33]} Kf7 {[%emt 0:00:14]} 52. Bd8 {[%emt 0:00:02]} Ke6 {[%emt 0:00:24]} 53. Bg5 {[%emt 0:00:51]} Bf3 {[%emt 0:01:36]} 54. Bd8 {[%emt 0:00:12]} Kd5 {[%emt 0:00:37]} 55. g5 {[%emt 0:00:04]} Bh5 {[%emt 0:00:08]} 56. Bf6 {[%emt 0:01:00]} Bg6 {[%emt 0:00:12]} 57. Bd8 {[%emt 0:00:01]} Ke6 {[%emt 0:00:45]} 58. Bf6 {[%emt 0:00:15]} Kf5 {[%emt 0:00:07]} 59. Bd8 {[%emt 0:00:09]} Bf4+ {[%emt 0:00:18]} 60. Ke2 {[%emt 0:00:07]} Bxg5 {[%emt 0:00:39]} 61. Bb6 {[%emt 0:00:04] Black mates.} Bh5+ {[%emt 0:00:07]} 62. Kf2 {[%emt 0:00:04]} Bf3 {[%emt 0:00:15]} 63. Kg3 {[%emt 0:00:05]} Bd2 {[%emt 0:00:30]} 64. Kf2 {[%emt 0:00:04]} Ke6 {[%emt 0:00:20]} 65. Kg3 {[%emt 0:00:04]} Kd5 {[%emt 0:00:05]} 66. Kf2 {[%emt 0:00:50]} Kc4 {[%emt 0:00:06]} 67. Kg3 {[%emt 0:00:03]} Kd3 {[%emt 0:00:10]} 68. Kf2 {[%emt 0:00:38]} Bd1 {[%emt 0:00:13]} 69. Kg3 {[%emt 0:00:07]} e3 {[%emt 0:00:19]} 70. Kh4 {[%emt 0:00:10]} e2 {[%emt 0:00:19]} 71. Bf2 {[%emt 0:00:01]} e1=Q {[%emt 0:00:11]} 72. Bxe1 {[%emt 0:00:02]} Bxe1+ {[%emt 0:00:11]} 73. Kg5 {[%emt 0:00:01]} Bf3 {[%emt 0:00:10]} 74. Kf4 {[%emt 0:00:02]} Be4 {[%emt 0:00:15]} 75. Ke5 {[%emt 0:00:01]} Bd2 {[%emt 0:00:14][%cal Be1d2,Bd2f4,Bf4e5][%mdl 32]} 76. Kd6 {[%emt 0:00:03]} Kd4 {[%emt 0:00:31]} 77. Ke6 {[%emt 0:00:04]} Bf4 {[%emt 0:00:02]} 78. Kf6 {[%emt 0:00:06]} Kd5 {[%emt 0:00:02]} 79. Ke7 {[%emt 0:00:03]} Be5 {[%emt 0:00:15]} 80. Kd7 {[%emt 0:00:02]} Bf5+ {[%emt 0:00:06][%cal Be4f5,Bf5e6,Be6d5][%mdl 32]} 81. Ke7 {[%emt 0:00:02]} Kc6 {[%emt 0:00:07][%cal Bd5c6,Bc6d6,Bd6e6,Be6f6,Bf6g6][%mdl 32]} 82. Kf7 {[%emt 0:00:02]} Kd6 {[%emt 0:00:09]} 83. Ke8 {[%emt 0:00:03]} Be6 {[%emt 0:00:06]} 84. Kd8 {[%emt 0:00:03]} Bf6+ {[%emt 0:00:02]} 85. Ke8 {[%emt 0:00:07]} Bd5 {[%emt 0:00:04]} 86. Kf8 {[%emt 0:00:03]} Ke6 {[%emt 0:00:05]} 87. Ke8 {[%emt 0:00:03]} Be4 {[%emt 0:00:04]} 88. Kf8 {[%emt 0:00:03]} Bg6 {[%emt 0:00:04]} 89. Kg8 {[%emt 0:00:01]} Be5 {[%emt 0:00:15]} 90. Kf8 {[%emt 0:00:02]} Kf6 {[%emt 0:00:06]} 91. Kg8 {[%emt 0:00:01]} Bf4 {[%emt 0:00:17]} 92. Kf8 {[%emt 0:00:02]} Bh6+ {[%emt 0:00:09]} 93. Kg8 {[%emt 0:00:02]} Bf5 {[%emt 0:00:10]} 94. Kh8 {[%emt 0:00:01]} Kg6 {[%emt 0:00:08] Weighted Error Value: White=0.63/Black=0.06 (flawless)} 0-1